fUSD/lending_fUSD_20241225
["ID","MTS","AMOUNT","RATE_DAILY","PERIOD"]
[346563021,1735087860511,-1474.97,0.00012981,2]
[346563022,1735087860521,-500.0,0.00012981,2]
[346563023,1735087860529,-500.0,0.00012981,2]
[346563024,1735087860539,-500.0,0.00012981,2]
[346563025,1735087860548,-500.0,0.00012981,2]
[346563026,1735087860558,-500.0,0.00012981,2]
[346563027,1735087860567,-501.87677574,0.00012981,2]
[346563028,1735087860577,-500.0,0.00012981,2]
[346563029,1735087860587,-500.0,0.00012981,2]
[346563030,1735087860596,-500.0,0.00012981,2]
[346563031,1735087860606,-500.0,0.00012981,2]
[346563032,1735087860617,-500.0,0.00012981,2]
[346563033,1735087860626,-500.0,0.00012981,2]
[346563034,1735087860636,-500.0,0.00012981,2]
[346563035,1735087860645,-500.0,0.00012981,2]
[346563036,1735087860654,-500.0,0.00012981,2]
[346563037,1735087860663,-1715.18,0.00012981,2]
[346563038,1735087860672,-500.0,0.00012981,2]
[346563039,1735087860682,-500.0,0.00012981,2]
[346563040,1735087860691,-500.0,0.00012981,2]
[346563041,1735087860700,-500.0,0.00012981,2]
[346563042,1735087860709,-500.73318479,0.00012981,2]
[346563043,1735087860718,-1723.91,0.00012981,2]
[346563044,1735087860727,-720.98,0.00012981,2]
[346563045,1735087860737,-500.0,0.00012981,2]
[346563046,1735087860749,-500.0,0.00012981,2]
[346563047,1735087860759,-500.0,0.00012981,2]
[346563048,1735087860767,-500.0,0.00012981,2]
[346563049,1735087860778,-500.0,0.00012981,2]
[346563050,1735087860787,-500.0,0.00012981,2]
[346563051,1735087860796,-500.0,0.00012981,2]
[346563052,1735087860805,-617.91,0.00012981,2]
[346563053,1735087860815,-500.0,0.00012981,2]
[346563054,1735087860824,-1577.22,0.00012981,2]
[346563055,1735087860833,-500.0,0.00012981,2]
[346563056,1735087860842,-299.83665445,0.00012981,2]
[346563057,1735087860851,-321.92178878,0.00012981,2]
[346563058,1735087860861,-500.0,0.00012981,2]
[346563059,1735087860870,-500.0,0.00012981,2]
[346563060,1735087860879,-1281.03,0.00012981,2]
[346563061,1735087860888,-500.0,0.00012981,2]
[346563062,1735087860897,-500.0,0.00012981,2]
[346563063,1735087860906,-500.0,0.00012981,2]
[346563064,1735087860915,-500.55135058,0.00012981,2]
[346563065,1735087860924,-500.0,0.00012981,2]
[346563066,1735087860933,-500.0,0.00012981,2]
[346563067,1735087860942,-1739.37,0.00012981,2]
[346563068,1735087860952,-500.0,0.00012981,2]
[346563069,1735087860961,-500.0,0.00012981,2]
[346563070,1735087860970,-500.0,0.00012981,2]
[346563071,1735087860979,-500.0,0.00012981,2]
[346563072,1735087860990,-500.0,0.00012981,2]
[346563073,1735087860999,-500.0,0.00012981,2]
[346563074,1735087861008,-500.0,0.00012981,2]
[346563075,1735087861017,-1126.83,0.00012981,2]
[346563076,1735087861026,-500.0,0.00012981,2]
[346563077,1735087861035,-500.0,0.00012981,2]
[346563078,1735087861045,-500.0,0.00012981,2]
[346563079,1735087861054,-500.0,0.00012981,2]
[346563080,1735087861063,-500.0,0.00012981,2]
[346563081,1735087861072,-500.0,0.00012981,2]
[346563082,1735087861082,-648.56,0.00012981,2]
[346563083,1735087861091,-1665.96,0.00012981,2]
[346563084,1735087861100,-500.0,0.00012981,2]
[346563085,1735087861109,-500.0,0.00012981,2]
[346563086,1735087861118,-500.0,0.00012981,2]
[346563087,1735087861127,-854.11,0.00012981,2]
[346563088,1735087861137,-500.0,0.00012981,2]
[346563089,1735087861146,-638.88422601,0.00012981,2]
[346563090,1735087861155,-500.0,0.00012981,2]
[346563091,1735087861165,-500.0,0.00012981,2]
[346563092,1735087861175,-662.66,0.00012981,2]
[346563093,1735087861184,-500.0,0.00012981,2]
[346563094,1735087861193,-523.96081372,0.00012981,2]
[346563095,1735087861203,-501.85357002,0.00012981,2]
[346563096,1735087861212,-500.0,0.00012981,2]
[346563097,1735087861222,-500.0,0.00012981,2]
[346563098,1735087861231,-1927.42,0.00012981,2]
[346563099,1735087861242,-500.0,0.00012981,2]
[346563100,1735087861251,-500.0,0.00012981,2]
[346563101,1735087861260,-500.0,0.00012981,2]
[346563102,1735087861270,-500.0,0.00012981,2]
[346563103,1735087861280,-1070.76,0.00012981,2]
[346563104,1735087861289,-500.95290356,0.00012981,2]
[346563105,1735087861298,-500.0,0.00012981,2]
[346563106,1735087861308,-500.0,0.00012981,2]
[346563107,1735087861317,-1063.87,0.00012981,2]
[346563108,1735087861327,-500.0,0.00012981,2]
[346563109,1735087861336,-500.0,0.00012981,2]
[346563110,1735087861346,-787.19,0.00012981,2]
[346563111,1735087861355,-500.0,0.00012981,2]
[346563112,1735087861365,-807.96,0.00012981,2]
[346563113,1735087861374,-500.0,0.00012981,2]
[346563114,1735087861384,-500.0,0.00012981,2]
[346563115,1735087861393,-500.0,0.00012981,2]
[346563116,1735087861402,-1596.72,0.00012981,2]
[346563117,1735087861412,-500.0,0.00012981,2]
[346563118,1735087861421,-500.0,0.00012981,2]
[346563119,1735087861430,-949.64,0.00012981,2]
[346563120,1735087861439,-415.04468619,0.00012981,2]
[346563121,1735087861449,-500.0,0.00012981,2]
[346563122,1735087861459,-500.0,0.00012981,2]
[346563123,1735087861468,-588.38,0.00012981,2]
[346563124,1735087861477,-500.0,0.00012981,2]
[346563125,1735087861487,-500.0,0.00012981,2]
[346563126,1735087861499,-569.59,0.00012981,2]
[346563127,1735087861511,-500.0,0.00012981,2]
[346563128,1735087861520,-824.14,0.00012981,2]
[346563129,1735087861530,-1477.79,0.00012981,2]
[346563130,1735087861540,-500.0,0.00012981,2]
[346563131,1735087861549,-500.0,0.00012981,2]
[346563132,1735087861558,-500.0,0.00012981,2]
[346563133,1735087861568,-500.0,0.00012981,2]
[346563134,1735087861577,-500.0,0.00012981,2]
[346563135,1735087861587,-500.0,0.00012981,2]
[346563136,1735087861596,-500.0,0.00012981,2]
[346563137,1735087861606,-500.0,0.00012981,2]
[346563138,1735087861616,-500.0,0.00012981,2]
[346563139,1735087861625,-500.0,0.00012981,2]
[346563140,1735087861634,-500.0,0.00012981,2]
[346563141,1735087861643,-1033.24,0.00012981,2]
[346563142,1735087861653,-500.0,0.00012981,2]
[346563143,1735087861662,-500.0,0.00012981,2]
[346563144,1735087861672,-1016.58,0.00012981,2]
[346563145,1735087861682,-500.0,0.00012981,2]
[346563146,1735087861852,-1200.5,0.00012981,2]
[346563147,1735087861862,-500.0,0.00012981,2]
[346563148,1735087861872,-500.0,0.00012981,2]
[346563149,1735087861882,-500.0,0.00012981,2]
[346563150,1735087861892,-789.62,0.00012981,2]
[346563151,1735087861901,-500.0,0.00012981,2]
[346563152,1735087861911,-875.39,0.00012981,2]
[346563153,1735087861921,-500.0,0.00012981,2]
[346563154,1735087861930,-500.0,0.00012981,2]
[346563155,1735087861940,-500.0,0.00012981,2]
[346563156,1735087861950,-694.57,0.00012981,2]
[346563157,1735087861959,-500.0,0.00012981,2]
[346563158,1735087861968,-826.01,0.00012981,2]
[346563159,1735087861978,-500.0,0.00012981,2]
[346563160,1735087861990,-500.0,0.00012981,2]
[346563161,1735087862000,-475.28925017,0.00012981,2]
[346563162,1735087862010,-1153.03,0.00012981,2]
[346563163,1735087862019,-500.0,0.00012981,2]
[346563164,1735087862029,-601.05,0.00012981,2]
[346563165,1735087862039,-1167.14,0.00012981,2]
[346563166,1735087862048,-500.0,0.00012981,2]
[346563167,1735087862058,-500.0,0.00012981,2]
[346563168,1735087862068,-500.0,0.00012981,2]
[346563169,1735087862077,-500.0,0.00012981,2]
[346563170,1735087862087,-500.0,0.00012981,2]
[346563171,1735087862097,-653.76,0.00012981,2]
[346563172,1735087862106,-500.0,0.00012981,2]
[346563173,1735087862116,-791.82,0.00012981,2]
[346563174,1735087862126,-790.65,0.00012981,2]
[346563175,1735087862135,-914.67,0.00012981,2]
[346563176,1735087862145,-500.0,0.00012981,2]
[346563177,1735087862154,-500.0,0.00012981,2]
[346563178,1735087862164,-500.0,0.00012981,2]
[346563179,1735087862173,-500.0,0.00012981,2]
[346563180,1735087862182,-500.0,0.00012981,2]
[346563181,1735087862192,-500.0,0.00012981,2]
[346563182,1735087862202,-500.0,0.00012981,2]
[346563183,1735087862211,-1077.15,0.00012981,2]
[346563184,1735087862220,-323.79012553,0.00012981,2]
[346563185,1735087862230,-531.13,0.00012981,2]
[346563186,1735087862240,-502.64094438,0.00012981,2]
[346563187,1735087862249,-500.0,0.00012981,2]
[346563188,1735087862259,-500.0,0.00012981,2]
[346563189,1735087862268,-1054.1,0.00012981,2]
[346563190,1735087862278,-500.0,0.00012981,2]
[346563191,1735087862287,-1025.38,0.00012981,2]
[346563192,1735087862297,-500.0,0.00012981,2]
[346563193,1735087862306,-500.0,0.00012981,2]
[346563194,1735087862316,-500.0,0.00012981,2]
[346563195,1735087862325,-500.0,0.00012981,2]
[346563196,1735087862335,-150.0,0.00012981,2]
[346563197,1735087862344,-500.0,0.00012981,2]
[346563198,1735087862354,-500.0,0.00012981,2]
[346563199,1735087862363,-5000.0,0.00012981,2]
[346563200,1735087862374,-1127.44,0.00012981,2]
[346563201,1735087862383,-500.0,0.00012981,2]
[346563202,1735087862393,-500.0,0.00012981,2]
[346563203,1735087862403,-950.52,0.00012981,2]
[346563204,1735087862412,-718.94,0.00012981,2]
[346563205,1735087862421,-500.0,0.00012981,2]
[346563206,1735087862431,-500.0,0.00012981,2]
[346563207,1735087862441,-1429.62,0.00012981,2]
[346563208,1735087862451,-500.0,0.00012981,2]
[346563209,1735087862461,-537.32,0.00012981,2]
[346563210,1735087862470,-500.0,0.00012981,2]
[346563211,1735087862479,-500.0,0.00012981,2]
[346563212,1735087862490,-500.0,0.00012981,2]
[346563213,1735087862499,-500.0,0.00012981,2]
[346563214,1735087862508,-500.0,0.00012981,2]
[346563215,1735087862518,-699.92,0.00012981,2]
[346563216,1735087862527,-500.0,0.00012981,2]
[346563217,1735087862539,-819.38,0.00012981,2]
[346563218,1735087862550,-3517.05,0.00012981,2]
[346563219,1735087862561,-1283.23,0.00012981,2]
[346563220,1735087862573,-500.0,0.00012981,2]
[346563221,1735087862585,-500.0,0.00012981,2]
[346563222,1735087862599,-151.0,0.00012982,2]
[346563223,1735087862610,-158.772805,0.00012982,2]
[346563224,1735087862620,-151.0,0.00012982,2]
[346563225,1735087862629,-151.0,0.00012982,2]
[346563226,1735087862639,-151.0,0.00012982,2]
[346563227,1735087862648,-198.179054,0.00012982,2]
[346563228,1735087862658,-151.830779,0.00012982,2]
[346563229,1735087862668,-151.0,0.00012982,2]
[346563230,1735087862677,-151.0,0.00012982,2]
[346563231,1735087862687,-151.0,0.00012982,2]
[346563232,1735087862698,-151.0,0.00012982,2]
[346563233,1735087862708,-151.0,0.00012982,2]
[346563234,1735087862717,-151.0,0.00012982,2]
[346563235,1735087862727,-151.0,0.00012982,2]
[346563236,1735087862737,-240.378196,0.00012982,2]
[346563237,1735087862754,-151.0,0.00012982,2]
[346563238,1735087862764,-151.0,0.00012982,2]
[346563239,1735087862773,-151.0,0.00012982,2]
[346563240,1735087862783,-151.0,0.00012982,2]
[346563241,1735087862793,-151.0,0.00012982,2]
[346563242,1735087862803,-151.0,0.00012982,2]
[346563243,1735087862813,-151.0,0.00012982,2]
[346563244,1735087862823,-151.0,0.00012982,2]
[346563245,1735087862833,-193.362039,0.00012982,2]
[346563246,1735087862843,-151.0,0.00012982,2]
[346563247,1735087862853,-151.0,0.00012982,2]
[346563248,1735087862863,-151.0,0.00012982,2]
[346563249,1735087862873,-151.0,0.00012982,2]
[346563250,1735087862883,-151.0,0.00012982,2]
[346563251,1735087862892,-268.576119,0.00012982,2]
[346563252,1735087862902,-268.576119,0.00012982,2]
[346563253,1735087862912,-268.576119,0.00012982,2]
[346563254,1735087862921,-268.576119,0.00012982,2]
[346563255,1735087862932,-268.576119,0.00012982,2]
[346563256,1735087862942,-268.576119,0.00012982,2]
[346563257,1735087862952,-268.576119,0.00012982,2]
[346563258,1735087862961,-268.576119,0.00012982,2]
[346563259,1735087862971,-268.576119,0.00012982,2]
[346563260,1735087862980,-268.576111,0.00012982,2]
[346563261,1735087862990,-360.0,0.00012982,2]
[346563262,1735087863000,-360.0,0.00012982,2]
[346563263,1735087863011,-360.0,0.00012982,2]
[346563264,1735087863022,-360.0,0.00012982,2]
[346563265,1735087863033,-360.0,0.00012982,2]
[346563266,1735087863045,-360.0,0.00012982,2]
[346563267,1735087863055,-360.0,0.00012982,2]
[346563268,1735087863066,-360.0,0.00012982,2]
[346563269,1735087863075,-360.0,0.00012982,2]
[346563270,1735087863085,-360.0,0.00012982,2]
[346563271,1735087863094,-153.825587,0.00012982,2]
[346563272,1735087863104,-155.594154,0.00012982,2]
[346563273,1735087863113,-155.594154,0.00012982,2]
[346563274,1735087863123,-155.594154,0.00012982,2]
[346563275,1735087863133,-155.594154,0.00012982,2]
[346563276,1735087863143,-155.594154,0.00012982,2]
[346563277,1735087863153,-155.594154,0.00012982,2]
[346563278,1735087863162,-155.594154,0.00012982,2]
[346563279,1735087863172,-155.594163,0.00012982,2]
[346563280,1735087863182,-151.0,0.00012982,2]
[346563281,1735087863192,-200.0,0.00012982,2]
[346563282,1735087863202,-1715.18,0.00012982,2]
[346563283,1735087863211,-1715.18,0.00012982,2]
[346563284,1735087863221,-1715.18,0.00012982,2]
[346563285,1735087863230,-1715.18,0.00012982,2]
[346563286,1735087863240,-1715.18,0.00012982,2]
[346563287,1735087863250,-1972.62,0.00012982,2]
[346563288,1735087863260,-1603.75,0.00012982,2]
[346563289,1735087863269,-2000.0,0.00012982,2]
[346563290,1735087863279,-1887.01,0.00012982,2]
[346563291,1735087863290,-1547.13,0.00012982,2]
[346563292,1735087863300,-500.0,0.00012982,2]
[346563293,1735087863311,-3957.96,0.00012982,2]
[346563294,1735087863321,-2312.73,0.00012982,2]
[346563295,1735087863331,-3793.12,0.00012982,2]
[346563296,1735087863342,-1231.13,0.00012982,2]
[346563297,1735087863352,-3940.15,0.00012982,2]
[346563298,1735087863361,-500.0,0.00012982,2]
[346563299,1735087863371,-4679.07,0.00012982,2]
[346563300,1735087863381,-1842.48,0.00012982,2]
[346563301,1735087863390,-500.0,0.00012982,2]
[346563302,1735087863401,-815.18,0.00012982,2]
[346563303,1735087863410,-2192.25,0.00012982,2]
[346563304,1735087863420,-2353.39,0.00012982,2]
[346563305,1735087863429,-500.0,0.00012982,2]
[346563306,1735087863439,-500.0,0.00012982,2]
[346563307,1735087863449,-1571.42,0.00012982,2]
[346563308,1735087863459,-500.0,0.00012982,2]
[346563309,1735087863468,-875.39,0.00012982,2]
[346563310,1735087863478,-875.39,0.00012982,2]
[346563311,1735087863488,-875.39,0.00012982,2]
[346563312,1735087863498,-875.39,0.00012982,2]
[346563313,1735087863508,-875.39,0.00012982,2]
[346563314,1735087863518,-151.0,0.00012983,2]
[346563315,1735087863528,-151.0,0.00012983,2]
[346563316,1735087863538,-151.0,0.00012983,2]
[346563317,1735087863547,-152.266563,0.00012983,2]
[346563318,1735087863557,-192.023034,0.00012983,2]
[346563319,1735087863567,-151.0,0.00012983,2]
[346563320,1735087863576,-151.0,0.00012983,2]
[346563321,1735087863586,-151.0,0.00012983,2]
[346563322,1735087863598,-500.0,0.00012983,2]
[346563323,1735087863609,-1765.2,0.00012983,2]
[346563324,1735087863622,-500.0,0.00012983,2]
[346563325,1735087863636,-500.0,0.00012983,2]
[346563326,1735087863649,-552.32,0.00012983,2]
[346563327,1735087863662,-1715.18,0.00012983,2]
[346563328,1735087863673,-1715.18,0.00012983,2]
[346563329,1735087863683,-1715.18,0.00012983,2]
[346563330,1735087863692,-1715.18,0.00012983,2]
[346563331,1735087863701,-875.39,0.00012983,2]
[346563332,1735087863711,-875.39,0.00012983,2]
[346563333,1735087863721,-875.39,0.00012983,2]
[346563334,1735087863730,-875.39,0.00012983,2]
[346563335,1735087863743,-3517.05,0.00012983,2]
[346563336,1735087863753,-1715.18,0.00012984,2]
[346563337,1735087863763,-1715.18,0.00012984,2]
[346563338,1735087863773,-875.39,0.00012984,2]
[346563339,1735087863783,-875.39,0.00012984,2]
[346563340,1735087863792,-9203.51,0.00012985,2]
[346563341,1735087863801,-11523.999999,0.00012985,2]
[346563342,1735087863811,-1715.18,0.00012986,2]
[346563343,1735087863822,-875.39,0.00012986,2]
[346563344,1735087863832,-1715.18,0.00012991,2]
[346563345,1735087863841,-875.39,0.00012991,2]
[346563346,1735087863851,-307.43647569,0.00012993,3]
[346563347,1735087863860,-1072.672,0.00012995,2]
[346563348,1735087863869,-150.0,0.00012995,2]
[346563349,1735087863879,-3887.0,0.00012995,2]
[346563350,1735087863889,-9594.0,0.00012995,2]
[346563351,1735087863899,-150.0,0.00012995,2]
[346563352,1735087863910,-1170.0,0.00012995,2]
[346563353,1735087863920,-154.9379561,0.00012997,2]
[346563354,1735087863930,-267.71612702,0.00012997,2]
[346563355,1735087863940,-9410.89977973,0.00012999,2]
[346563356,1735087863950,-1715.18,0.00012999,2]
[346563357,1735087863960,-1715.18,0.00012999,2]
[346563358,1735087863969,-1715.18,0.00012999,2]
[346563359,1735087863979,-1715.18,0.00012999,2]
[346563360,1735087863989,-1715.18,0.00012999,2]
[346563361,1735087863999,-1715.18,0.00012999,2]
[346563362,1735087864009,-1715.18,0.00012999,2]
[346563363,1735087864019,-1715.18,0.00012999,2]
[346563364,1735087864029,-1715.18,0.00012999,2]
[346563365,1735087864039,-1715.34303704,0.00012999,2]
[346563366,1735087864048,-875.39,0.00012999,2]
[346563367,1735087864058,-875.39,0.00012999,2]
[346563368,1735087864067,-875.39,0.00012999,2]
[346563369,1735087864077,-875.39,0.00012999,2]
[346563370,1735087864086,-875.39,0.00012999,2]
[346563371,1735087864096,-875.39,0.00012999,2]
[346563372,1735087864105,-875.39,0.00012999,2]
[346563373,1735087864114,-875.39,0.00012999,2]
[346563374,1735087864124,-875.39,0.00012999,2]
[346563375,1735087864134,-875.46048905,0.00012999,2]
[346563376,1735087864299,-3517.05,0.00012999,2]
[346563377,1735087864309,-3517.05,0.00012999,2]
[346563378,1735087864320,-3517.05,0.00012999,2]
[346563379,1735087864329,-3517.05,0.00012999,2]
[346563380,1735087864339,-3517.05,0.00012999,2]
[346563381,1735087864349,-3517.05,0.00012999,2]
[346563382,1735087864359,-3517.05,0.00012999,2]
[346563383,1735087864369,-3517.05,0.00012999,2]
[346563384,1735087864379,-3517.05,0.00012999,2]
[346563385,1735087864388,-3517.14108452,0.00012999,2]
[346563386,1735087864398,-656496.91399079,0.00013,2]
[346563387,1735087865386,-1277.905,0.00013,2]
[346563388,1735087866896,-394.60000005,0.00013,2]
[346563389,1735087866907,-1205.0062,0.00013,2]
[346563390,1735087866918,-356.7699245,0.00013,2]
[346563391,1735087866931,-571.9728,0.00013,2]
[346563392,1735087867023,-347.06404734,0.00012975,2]
[346563393,1735087868323,-1018.77748524,0.00012975,2]
[346563394,1735087868569,-3628.99362848,0.00012975,2]
[346563395,1735087868580,-402.52309571,0.00012975,2]
[346563396,1735087868591,-3757.78198944,0.00012975,2]
[346563436,1735089031910,-363.04,0.00010137,2]
[346563437,1735089031919,-971.29,0.00010152,2]
[346563438,1735089031929,-293.21,0.00011915,2]
[346563439,1735089031939,-1147.77,0.00011936,2]
[346563440,1735089031949,-400.0,0.0001195,2]
[346563441,1735089031958,-1000.0,0.00011971,2]
[346563442,1735089031967,-200.0,0.00012,2]
[346563443,1735089031976,-250.0,0.00012007,2]
[346563444,1735089031986,-250.0,0.00012027,2]
[346563445,1735089031995,-250.0,0.0001204,2]
[346563446,1735089032004,-404.413,0.0001235,2]
[346563447,1735089032016,-971.29,0.00012416,2]
[346563448,1735089032025,-1000.0,0.000127,2]
[346563449,1735089032035,-436.21,0.000128,2]
[346563450,1735089032044,-150.0,0.000128,2]
[346563451,1735089032053,-151.22,0.000128,2]
[346563452,1735089032062,-422.95,0.000128,2]
[346563453,1735089032072,-150.0,0.000128,2]
[346563454,1735089032081,-167.96831496,0.00012873,2]
[346563455,1735089032091,-5000.0,0.00012874,2]
[346563456,1735089032101,-200.79,0.00012875,2]
[346563457,1735089032110,-202.37,0.00012875,2]
[346563458,1735089032120,-203.42,0.00012875,2]
[346563459,1735089032129,-200.2,0.00012875,2]
[346563460,1735089032138,-200.58,0.00012875,2]
[346563461,1735089032148,-200.22,0.00012875,2]
[346563462,1735089032158,-200.54,0.00012875,2]
[346563463,1735089032167,-200.81,0.00012875,2]
[346563464,1735089032176,-203.45,0.00012875,2]
[346563465,1735089032185,-203.11,0.00012875,2]
[346563466,1735089032195,-50423.0496,0.00012875,2]
[346563467,1735089032204,-34919.4524,0.00012876,2]
[346563468,1735089032214,-1000.0,0.00012876,2]
[346563469,1735089032223,-201.9,0.00012876,2]
[346563471,1735089032232,-341.0263,0.00012876,2]
[346563473,1735089032241,-202.23,0.00012876,2]
[346563475,1735089032251,-6324.0,0.00012877,2]
[346563477,1735089032260,-3807.0,0.000129,2]
[346563479,1735089032269,-1005.862,0.000129,2]
[346563480,1735089032278,-1299.17,0.00012971,2]
[346563481,1735089032288,-1390.41,0.00012971,2]
[346563482,1735089032297,-2964.07,0.00012971,2]
[346563483,1735089032306,-500.0,0.00012972,2]
[346563484,1735089032315,-1097.95,0.00012972,2]
[346563485,1735089032324,-22270.85,0.00012972,2]
[346563486,1735089032333,-500.0,0.00012972,2]
[346563487,1735089032342,-1878.11,0.00012972,2]
[346563488,1735089032351,-3953.85,0.00012972,2]
[346563489,1735089032360,-2633.48,0.00012972,2]
[346563490,1735089032369,-5323.47,0.00012972,2]
[346563491,1735089032378,-155.23595,0.00012972,2]
[346563492,1735089032388,-154.669237,0.00012972,2]
[346563494,1735089032402,-3168.492282,0.00012972,2]
[346563495,1735089032412,-9783.58,0.00012972,2]
[346563496,1735089032422,-3216.06463,0.00012972,2]
[346563498,1735089032433,-2496.41,0.00012972,2]
[346563500,1735089032442,-4813.69,0.00012972,2]
[346563502,1735089032452,-5381.71,0.00012972,2]
[346563504,1735089032462,-3544.29,0.00012972,2]
[346563506,1735089032472,-30129.24,0.00012972,2]
[346563508,1735089032481,-3273.98,0.00012972,2]
[346563510,1735089032491,-1966.05440804,0.00012972,2]
[346563512,1735089032500,-500.0,0.00012972,2]
[346563524,1735089032690,-2500.45,0.00012972,2]
[346563525,1735089032712,-1315.41,0.00012972,2]
[346563526,1735089032721,-34381.15,0.00012972,2]
[346563527,1735089032731,-500.0,0.00012972,2]
[346563528,1735089032739,-5501.25,0.00012972,2]
[346563529,1735089032749,-8724.33,0.00012972,2]
[346563530,1735089032757,-2754.31,0.00012972,2]
[346563531,1735089032766,-515.57,0.00012972,2]
[346563532,1735089032776,-4996.48,0.00012972,2]
[346563533,1735089032785,-8799.6,0.00012972,2]
[346563534,1735089032794,-11499.6,0.00012972,2]
[346563535,1735089032803,-6189.71,0.00012972,2]
[346563536,1735089032812,-4874.36,0.00012972,2]
[346563537,1735089032821,-5922.5,0.00012972,2]
[346563538,1735089032830,-3737.3,0.00012972,2]
[346563539,1735089032839,-15053.61,0.00012972,2]
[346563540,1735089032848,-8238.36,0.00012972,2]
[346563541,1735089032858,-177.84695786,0.00012972,2]
[346563542,1735089032870,-1461.29771411,0.00012972,2]
[346563543,1735089032882,-350.8690286,0.00012972,2]
[346563544,1735089032893,-696.11325729,0.00012972,2]
[346563545,1735089032950,-949.89856878,0.00012972,2]
[346563546,1735089032983,-179.13447336,0.00012972,2]
[346563547,1735089032993,-250.07574091,0.00012972,2]
[346563552,1735089037652,-467.52,0.00012971,2]
[346563553,1735089037665,-416.35,0.00012971,2]
[346563554,1735089037675,-5666.44425909,0.00012972,2]
[346563555,1735089037684,-11447.39,0.00012972,2]
[346563557,1735089037694,-3669.66,0.00012972,2]
[346563558,1735089037703,-11548.14,0.00012972,2]
[346563559,1735089037713,-5811.3,0.00012972,2]
[346563560,1735089037722,-3100.24,0.00012972,2]
[346563561,1735089037732,-17108.32,0.00012972,2]
[346563562,1735089037741,-25152.22,0.00012972,2]
[346563563,1735089037751,-620.64,0.00012972,2]
[346563564,1735089037760,-1911.46,0.00012972,2]
[346563565,1735089037769,-1196.72,0.00012972,2]
[346563566,1735089037778,-4283.32,0.00012972,2]
[346563567,1735089037788,-5135.05,0.00012972,2]
[346563568,1735089037797,-6085.82962581,0.00012972,2]
[346563569,1735089037893,-1512.47037419,0.00012972,2]
[346563570,1735089037903,-2126.39,0.00012972,2]
[346563571,1735089037912,-3462.74,0.00012972,2]
[346563572,1735089037921,-2302.5162656,0.00012972,2]
[346563593,1735089039839,-524.07191877,0.00012971,2]
[346563594,1735089039851,-495.345,0.00012971,2]
[346563595,1735089039962,-642.97607776,0.00012971,2]
[346563596,1735089039973,-1545.82700347,0.00012971,2]
[346563597,1735089039983,-3833.24967665,0.00012972,2]
[346563598,1735089040080,-1915.15010123,0.00012972,2]
[346563599,1735089040092,-1216.71409404,0.00012972,2]
[346563609,1735089042920,-4.79986248,0.00012972,2]
[346563610,1735089042930,-369.94093752,0.00012972,2]
[346563640,1735089046330,-418.66907585,0.00012972,2]
[346563648,1735089046462,-263.58998663,0.00012972,2]
[346563649,1735089046473,-500.0,0.00012972,2]
[346563650,1735089046483,-981.10328262,0.00012972,2]
[346563651,1735089046495,-432.00902886,0.00012972,2]
[346563652,1735089518103,5412.83300317,0.000145,25]
[346563739,1735090232042,-449.32685517,0.00010027,2]
[346563741,1735090232054,-299.99,0.00010027,2]